{"text_format":"1","workbook":"xlsx","n_sheets":5,"sheets":["救命講習フロー","記入例","こちらに入力","→自動入力されます　救命講習受講申請書","救命講習申し込む補足"],"not_rendered":{"charts":0,"images":0,"macros":1,"external_links":0,"defined_names":2,"comments":0,"pivot_tables":0},"unopened":[],"bounds":{"document_bytes":16777216,"sheet_cells":100000,"rows_first":2000,"rows_last":500,"rows_between":2000,"halvings":0,"cell_chars":16384,"cell_head_chars":4096},"cells_cut":0,"cells_raw":0,"read":"whole","date_system":"1900"}

{"sheet":"救命講習フロー","index":0,"n_rows":1,"n_cols":10,"rows_kept":1,"cut":false,"hidden":false,"merged":[]}
[null,null,null,null,null,null,null,null,null,"ver.20250401"]

{"sheet":"記入例","index":1,"n_rows":50,"n_cols":23,"rows_kept":50,"cut":false,"hidden":false,"merged":[[18,3,18,5],[25,1,25,2],[26,1,27,1],[1,1,1,2],[3,3,3,5],[4,4,4,5],[6,1,6,2],[6,3,6,7],[10,1,16,1],[10,3,10,5],[17,1,24,1],[22,3,22,7]]}
[]
[null,"申請年月日",null,"西暦",2023,"年",4,"月",10,"日"]
[null,null,null,null,null,null,null,null,null,null,null,null,null,"リスト","①","普通救命講習（３時間）",{"$f":"O3&P3","v":"①普通救命講習（３時間）"}]
[null,"申請者","団体名","株式会社　消防防災",null,null,null,null,null,null,null,null,null,"同上","②","普通救命講習（短縮２時間）",{"$f":"O4&P4","v":"②普通救命講習（短縮２時間）"}]
[null,"担当者","職・氏名","総務部長","消防　太朗",null,null,null,null,null,null,null,null,"芝消防署","③","普通救命講習（３時間）で再講習者が一緒に実施","③普通救命講習（３時間）で再講習者が一緒に実施"]
[null,null,null,null,null,null,null,null,null,null,null,null,null,"上記以外","④","普通Ⅱ（自動体外式除細動器業務従事者４時間）","④普通Ⅱ（自動体外式除細動器業務従事者４時間）"]
[null,"講習区分",null,"①普通救命講習（３時間）",null,null,null,null,null,null,null,"←普通救命講習に再講習が参加する場合は③を選択",null,null,"⑤","普通救命再講習（２時間２０分）","⑤普通救命再講習（２時間２０分）"]
[null,"講習日",null,"西暦",2023,"年",5,"月",28,"日",{"$f":"TEXT(M8,\"（aaa）\")","v":"(日)"},null,{"$f":"IF(OR(E8=\"\",G8=\"\",I8=\"\"),\"\",E8&\"/\"&G8&\"/\"&I8)","v":"2023/5/28"},"従業員","⑥","上級救命講習（８時間）","⑥上級救命講習（８時間）"]
[null,null,null,9,"時","00","分～",12,"時","00","分",null,null,"学生","⑦","上級救命講習（短縮６時間）","⑦上級救命講習（短縮６時間）"]
[null,null,null,13,"時","00","分～",16,"時","00","分","←同日に同講習区分で午前・午後実施する場合のみ入力",null,"その他","⑧","上級救命再講習（３時間）","⑧上級救命再講習（３時間）"]
[null,"請求先","団体名","株式会社　消防防災",null,null,null,null,null,null,null,null,null,null,"⑨","入門コース","⑨入門コース"]
[null,null,"担当部署","総務部",null,null,null,null,null,null,null,null,null,null,"⑩","ステップアップ普通救命講習","⑩ステップアップ普通救命講習"]
[null,null,"担当者名","芝　太朗",null,null,null,null,null,null,null,null,null,"当日希望","⑪","ステップアップ上級救命講習","⑪ステップアップ上級救命講習"]
[null,null,"電話番号","03","-","3431","-","0119",null,null,null,null,null,"後日受領","⑫","普及員講習（８時間×３日間　２４時間）","⑫普及員講習（８時間×３日間　２４時間）"]
[null,null,"郵便番号","105","-","0021",null,null,null,null,null,null,null,null,"⑬","普及員再講習（３時間）","⑬普及員再講習（３時間）"]
[null,null,"住所","東京都　港　区","東新橋",2,"丁目",13,"番",7,"号",null,null,"あり","⑭","【生徒】普通救命講習（３時間）","⑭【生徒】普通救命講習（３時間）"]
[null,null,null,"建物名称","消防ビル",null,5,"階",null,null,null,null,null,"なし","⑮","【生徒】普通救命講習（短縮２時間）","⑮【生徒】普通救命講習（短縮２時間）"]
[null,"実施","実施場所住所","上記以外","←請求先と実施場所が階層のみ違う場合は「同上」を選択し階層を入力してください。",null,null,null,null,null,null,null,null,null,"⑯","【生徒】上級救命講習（８時間）","⑯【生徒】上級救命講習（８時間）"]
[null,null,"団体名","株式会社　消防防災　芝消防営業所",null,null,null,null,null,null,null,null,null,null,"⑰","【生徒】上級救命講習（短縮６時間）","⑰【生徒】上級救命講習（短縮６時間）"]
[null,null,"担当部署","総務部",null,null,null,null,null,null,null,null,null,null,"⑱","応急救護（適宜）","⑱応急救護（適宜）"]
[null,null,"担当者名","芝　太朗"]
[null,null,"電話番号","03","-","3431","-","0119"]
[null,null,"メールアドレス","siba8@tfd.metro.tokyo.jp",null,null,null,null,null,null,null,null,null,"当日認定証をお渡しします。\n事前に東京防災救急協会へ連絡してください。"]
[null,null,"実施場所住所","港区","東新橋",2,"丁目",14,"番",4,"号",null,null,"一括請求となります。"]
[null,null,"実施建物名称","建物名称","東消ビル",null,7,"階","会議室名等","１１９号会議室"]
[null,"対象者",null,"従業員"]
[null,"人数",{"$f":"IF(D7=M35,\"新規\",IF(NOT(D10=\"\"),\"午前\",\"\"))","v":"午前"},10,"名"]
[null,null,{"$f":"IF(D7=M35,\"再講習\",IF(NOT(D10=\"\"),\"午後\",\"\"))","v":"午後"},16,"名"]
[null,"認定証の受領について",null,"当日希望"]
[null,"他の日と一括請求",null,"あり"]
[null,"備考欄",null,"5月29日と一括請求、実施対象者は芝営業所の社員ですが、請求先は実施責任者の芝 太朗までお願いいたします。"]
[null,null,null,null,null,null,null,null,null,null,null,null,null,1,2,3,4,5,6,7]
[null,null,null,null,null,null,null,null,null,null,null,null,"①普通救命講習（３時間）",{"$f":"U41&CHAR(10)&V41","v":"①.普通救命講習　\n（3時間）"},{"$f":"$U$34","v":"2.普通救命講習Ⅱ\n（自動体外式除細動器業務従事者））"},{"$f":"$U$35","v":"3.上級救命講習　"},{"$f":"$U$36","v":"4.普通救命再講習"},{"$f":"$U$37","v":"5.上級救命再講習"},{"$f":"$U$38","v":"6.応急救護講習"},{"$f":"$U$39","v":"7.その他"},"1.普通救命講習　"]
[null,null,null,null,null,null,null,null,null,null,null,null,"②普通救命講習（短縮２時間）",{"$f":"U41&CHAR(10)&V42","v":"①.普通救命講習　\n（短縮2時間）"},{"$f":"$U$34","v":"2.普通救命講習Ⅱ\n（自動体外式除細動器業務従事者））"},{"$f":"$U$35","v":"3.上級救命講習　"},{"$f":"$U$36","v":"4.普通救命再講習"},"5.上級救命再講習","6.応急救護講習","7.その他","2.普通救命講習Ⅱ\n（自動体外式除細動器業務従事者））"]
[null,null,null,null,null,null,null,null,null,null,null,null,"③普通救命講習（３時間）で再講習者が一緒に実施",{"$f":"U41&CHAR(10)&V41","v":"①.普通救命講習　\n（3時間）"},{"$f":"$U$34","v":"2.普通救命講習Ⅱ\n（自動体外式除細動器業務従事者））"},{"$f":"$U$35","v":"3.上級救命講習　"},{"$f":"$U$36","v":"4.普通救命再講習"},"5.上級救命再講習","6.応急救護講習","7.その他","3.上級救命講習　"]
[null,null,null,null,null,null,null,null,null,null,null,null,"④普通Ⅱ（自動体外式除細動器業務従事者４時間）",{"$f":"$U$33","v":"1.普通救命講習　"},{"$f":"U42&CHAR(10)&V44","v":"②.普通救命講習Ⅱ\n（自動体外式除細動器業務従事者））\n（4時間）"},{"$f":"$U$35","v":"3.上級救命講習　"},{"$f":"$U$36","v":"4.普通救命再講習"},"5.上級救命再講習","6.応急救護講習","7.その他","4.普通救命再講習"]
[null,null,null,null,null,null,null,null,null,null,null,null,"⑤普通救命再講習（２時間２０分）","1.普通救命講習　",{"$f":"$U$34","v":"2.普通救命講習Ⅱ\n（自動体外式除細動器業務従事者））"},{"$f":"$U$35","v":"3.上級救命講習　"},{"$f":"U44&CHAR(10)&V43","v":"④.普通救命再講習\n（2時間20分）"},"5.上級救命再講習","6.応急救護講習","7.その他","5.上級救命再講習"]
[null,null,null,null,null,null,null,null,null,null,null,null,"⑥上級救命講習（８時間）","1.普通救命講習　","2.普通救命講習Ⅱ\n（自動体外式除細動器業務従事者））",{"$f":"U43&CHAR(10)&V45","v":"③.上級救命講習　\n（8時間）"},{"$f":"$U$36","v":"4.普通救命再講習"},"5.上級救命再講習","6.応急救護講習","7.その他","6.応急救護講習"]
[null,null,null,null,null,null,null,null,null,null,null,null,"⑦上級救命講習（短縮６時間）","1.普通救命講習　","2.普通救命講習Ⅱ\n（自動体外式除細動器業務従事者））",{"$f":"U43&CHAR(10)&V46","v":"③.上級救命講習　\n（短縮6時間）"},"4.普通救命再講習","5.上級救命再講習","6.応急救護講習","7.その他","7.その他"]
[null,null,null,null,null,null,null,null,null,null,null,null,"⑧上級救命再講習（３時間）","1.普通救命講習　","2.普通救命講習Ⅱ\n（自動体外式除細動器業務従事者））",{"$f":"$U$35","v":"3.上級救命講習　"},"4.普通救命再講習",{"$f":"U45&CHAR(10)&V41","v":"⑤.上級救命再講習\n（3時間）"},"6.応急救護講習","7.その他"]
[null,null,null,null,null,null,null,null,null,null,null,null,"⑨入門コース","1.普通救命講習　","2.普通救命講習Ⅱ\n（自動体外式除細動器業務従事者））","3.上級救命講習　","4.普通救命再講習",{"$f":"$U$37","v":"5.上級救命再講習"},"6.応急救護講習",{"$f":"U47","v":"⑦.その他"},"①.普通救命講習　","（3時間）","生徒"]
[null,null,null,null,null,null,null,null,null,null,null,null,"⑩ステップアップ普通救命講習","1.普通救命講習　","2.普通救命講習Ⅱ\n（自動体外式除細動器業務従事者））","3.上級救命講習　","4.普通救命再講習","5.上級救命再講習","6.応急救護講習",{"$f":"U47","v":"⑦.その他"},"②.普通救命講習Ⅱ\n（自動体外式除細動器業務従事者））","（短縮2時間）"]
[null,null,null,null,null,null,null,null,null,null,null,null,"⑪ステップアップ上級救命講習","1.普通救命講習　","2.普通救命講習Ⅱ\n（自動体外式除細動器業務従事者））","3.上級救命講習　","4.普通救命再講習","5.上級救命再講習","6.応急救護講習",{"$f":"U47","v":"⑦.その他"},"③.上級救命講習　","（2時間20分）"]
[null,null,null,null,null,null,null,null,null,null,null,null,"⑫普及員講習（８時間×３日間　２４時間）","1.普通救命講習　","2.普通救命講習Ⅱ\n（自動体外式除細動器業務従事者））","3.上級救命講習　","4.普通救命再講習","5.上級救命再講習","6.応急救護講習",{"$f":"U47","v":"⑦.その他"},"④.普通救命再講習","（4時間）"]
[null,null,null,null,null,null,null,null,null,null,null,null,"⑬普及員再講習（３時間）","1.普通救命講習　","2.普通救命講習Ⅱ\n（自動体外式除細動器業務従事者））","3.上級救命講習　","4.普通救命再講習","5.上級救命再講習","6.応急救護講習",{"$f":"U47","v":"⑦.その他"},"⑤.上級救命再講習","（8時間）"]
[null,null,null,null,null,null,null,null,null,null,null,null,"⑭【生徒】普通救命講習（３時間）",{"$f":"U41&CHAR(10)&V41&W41","v":"①.普通救命講習　\n（3時間）生徒"},"2.普通救命講習Ⅱ\n（自動体外式除細動器業務従事者））","3.上級救命講習　","4.普通救命再講習","5.上級救命再講習","6.応急救護講習",{"$f":"$U$39","v":"7.その他"},"⑥.応急救護講習","（短縮6時間）"]
[null,null,null,null,null,null,null,null,null,null,null,null,"⑮【生徒】普通救命講習（短縮２時間）",{"$f":"U41&CHAR(10)&V42&W41","v":"①.普通救命講習　\n（短縮2時間）生徒"},"2.普通救命講習Ⅱ\n（自動体外式除細動器業務従事者））","3.上級救命講習　","4.普通救命再講習","5.上級救命再講習","6.応急救護講習",{"$f":"$U$39","v":"7.その他"},"⑦.その他","（適宜）"]
[null,null,null,null,null,null,null,null,null,null,null,null,"⑯【生徒】上級救命講習（８時間）",{"$f":"$U$33","v":"1.普通救命講習　"},"2.普通救命講習Ⅱ\n（自動体外式除細動器業務従事者））",{"$f":"U43&CHAR(10)&V45&W41","v":"③.上級救命講習　\n（8時間）生徒"},"4.普通救命再講習","5.上級救命再講習","6.応急救護講習",{"$f":"$U$39","v":"7.その他"}]
[null,null,null,null,null,null,null,null,null,null,null,null,"⑰【生徒】上級救命講習（短縮６時間）","1.普通救命講習　","2.普通救命講習Ⅱ\n（自動体外式除細動器業務従事者））",{"$f":"U43&CHAR(10)&V46&W41","v":"③.上級救命講習　\n（短縮6時間）生徒"},"4.普通救命再講習","5.上級救命再講習","6.応急救護講習",{"$f":"$U$39","v":"7.その他"}]
[null,null,null,null,null,null,null,null,null,null,null,null,"⑱応急救護（適宜）",{"$f":"$U$33","v":"1.普通救命講習　"},"2.普通救命講習Ⅱ\n（自動体外式除細動器業務従事者））",{"$f":"$U$35","v":"3.上級救命講習　"},"4.普通救命再講習","5.上級救命再講習",{"$f":"U46&CHAR(10)&V47","v":"⑥.応急救護講習\n（適宜）"},{"$f":"$U$39","v":"7.その他"}]

{"sheet":"こちらに入力","index":2,"n_rows":50,"n_cols":23,"rows_kept":50,"cut":false,"hidden":false,"merged":[[3,3,3,5],[18,3,18,5],[6,3,6,7],[17,1,24,1],[1,1,1,2],[10,1,16,1],[6,1,6,2],[25,1,25,2],[22,3,22,7],[26,1,27,1],[4,4,4,5],[10,3,10,5]]}
["消防署受付番号"]
[null,"申請年月日",null,"西暦",null,"年",null,"月",null,"日"]
[null,null,null,null,null,null,null,null,null,null,null,null,null,"リスト","①","普通救命講習（３時間）",{"$f":"O3&P3","v":"①普通救命講習（３時間）"}]
[null,"申請者","団体名",null,null,null,null,null,null,null,null,null,null,"同上","②","普通救命講習（短縮２時間）",{"$f":"O4&P4","v":"②普通救命講習（短縮２時間）"}]
[null,"担当者","職・氏名",null,null,null,null,null,null,null,null,null,null,"芝消防署","③","普通救命講習（３時間）で再講習者が一緒に実施","③普通救命講習（３時間）で再講習者が一緒に実施"]
[null,null,null,null,null,null,null,null,null,null,null,null,null,"上記以外","④","普通Ⅱ（自動体外式除細動器業務従事者４時間）","④普通Ⅱ（自動体外式除細動器業務従事者４時間）"]
[null,"講習区分",null,null,null,null,null,null,null,null,null,"←普通救命講習に【再】講習受講者を含む場合は③を選択",null,null,"⑤","普通救命再講習（２時間２０分）","⑤普通救命再講習（２時間２０分）"]
[null,"講習日",null,"西暦",null,"年",null,"月",null,"日",{"$f":"TEXT(M8,\"（aaa）\")","v":""},null,{"$f":"IF(OR(E8=\"\",G8=\"\",I8=\"\"),\"\",E8&\"/\"&G8&\"/\"&I8)","v":""},"従業員（社員）","⑥","上級救命講習（８時間）","⑥上級救命講習（８時間）"]
[null,null,null,null,"時",null,"分～",null,"時",null,"分",null,null,"教員","⑦","上級救命講習（短縮６時間）","⑦上級救命講習（短縮６時間）"]
[null,null,null,null,"時",null,"分～",null,"時",null,"分","←同日に同講習区分で午前・午後実施する場合のみ入力",null,"学生（18歳以上～）","⑧","上級救命再講習（３時間）","⑧上級救命再講習（３時間）"]
[null,"請求先","団体名",null,null,null,null,null,null,null,null,null,null,"生徒（高校生まで）","⑨","入門コース","⑨入門コース"]
[null,null,"請求担当部署",null,null,null,null,null,null,null,null,null,null,"その他","⑩","ステップアップ普通救命講習","⑩ステップアップ普通救命講習"]
[null,null,"請求担当者名",null,null,null,null,null,null,null,null,null,null,null,"⑪","ステップアップ上級救命講習","⑪ステップアップ上級救命講習"]
[null,null,"電話番号",null,"-",null,"-",null,null,null,null,null,null,"当日希望","⑫","普及員講習（８時間×３日間　２４時間）","⑫普及員講習（８時間×３日間　２４時間）"]
[null,null,"郵便番号",null,"-",null,null,null,null,null,null,null,null,"後日受領","⑬","普及員再講習（３時間）","⑬普及員再講習（３時間）"]
[null,null,"住所","東京都　区",null,null,"丁目",null,"番",null,"号",null,null,{"$f":"D15&F15","v":""},"⑭","【生徒】普通救命講習（３時間）","⑭【生徒】普通救命講習（３時間）"]
[null,null,null,"建物名称",null,null,null,"階",null,null,null,null,null,"あり","⑮","【生徒】普通救命講習（短縮２時間）","⑮【生徒】普通救命講習（短縮２時間）"]
[null,"実施","実施場所住所",null,"←請求先と実施場所が階層のみ違う場合は「同上」を選択し階層を入力",null,null,null,null,null,null,null,null,"なし","⑯","【生徒】上級救命講習（８時間）","⑯【生徒】上級救命講習（８時間）"]
[null,null,"団体名",null,null,null,null,null,null,null,null,null,null,"その他","⑰","【生徒】上級救命講習（短縮６時間）","⑰【生徒】上級救命講習（短縮６時間）"]
[null,null,"担当部署",null,null,null,null,null,null,null,null,null,null,null,"⑱","応急救護（適宜）","⑱応急救護（適宜）"]
[null,null,"担当者名"]
[null,null,"担当者電話番号",null,"-",null,"-"]
[null,null,"メールアドレス",null,null,null,null,null,null,null,null,null,null,"当日認定証をお渡しします。\n事前に東京防災救急協会へ連絡してください。"]
[null,null,"実施場所住所","港区",null,null,"丁目",null,"番",null,"号",null,null,"一括請求となります。"]
[null,null,"実施建物名称","建物名称",null,null,null,"階","会議室名等"]
[null,"対象者"]
[null,"人数",{"$f":"IF(D7=M35,\"新規\",IF(NOT(D10=\"\"),\"午前\",\"\"))","v":""},null,"名"]
[null,null,{"$f":"IF(D7=M35,\"再講習\",IF(NOT(D10=\"\"),\"午後\",\"\"))","v":""},null,"名"]
[null,"認定証の受取り",null,"","←当日の場合は、事前にリストの提出が必要です。後日の場合は、消防署に受領に来ていただきます。"]
[null,"他の日程と合算請求",null,null,"←「あり」の場合は、備考欄に他の日程も記入してください。"]
[null,"備考欄"]
[null,"※入力後は救急様式1号の表示内容を確認してください。",null,null,null,null,null,null,null,null,null,null,null,1,2,3,4,5,6,7]
[null,null,null,null,null,null,null,null,null,null,null,null,"①普通救命講習（３時間）",{"$f":"U41&CHAR(10)&V41","v":"①.普通救命講習　\n（3時間）"},{"$f":"$U$34","v":"2.普通救命講習Ⅱ\n（自動体外式除細動器業務従事者））"},{"$f":"$U$35","v":"3.上級救命講習　"},{"$f":"$U$36","v":"4.普通救命再講習"},{"$f":"$U$37","v":"5.上級救命再講習"},{"$f":"$U$38","v":"6.応急救護講習"},{"$f":"$U$39","v":"7.その他"},"1.普通救命講習　"]
[null,null,null,null,null,null,null,null,null,null,null,null,"②普通救命講習（短縮２時間）",{"$f":"U41&CHAR(10)&V42","v":"①.普通救命講習　\n（短縮2時間）"},{"$f":"$U$34","v":"2.普通救命講習Ⅱ\n（自動体外式除細動器業務従事者））"},{"$f":"$U$35","v":"3.上級救命講習　"},{"$f":"$U$36","v":"4.普通救命再講習"},"5.上級救命再講習","6.応急救護講習","7.その他","2.普通救命講習Ⅱ\n（自動体外式除細動器業務従事者））"]
[null,null,null,null,null,null,null,null,null,null,null,null,"③普通救命講習（３時間）で再講習者が一緒に実施",{"$f":"U41&CHAR(10)&V41","v":"①.普通救命講習　\n（3時間）"},{"$f":"$U$34","v":"2.普通救命講習Ⅱ\n（自動体外式除細動器業務従事者））"},{"$f":"$U$35","v":"3.上級救命講習　"},{"$f":"$U$36","v":"4.普通救命再講習"},"5.上級救命再講習","6.応急救護講習","7.その他","3.上級救命講習　"]
[null,null,null,null,null,null,null,null,null,null,null,null,"④普通Ⅱ（自動体外式除細動器業務従事者４時間）",{"$f":"$U$33","v":"1.普通救命講習　"},{"$f":"U42&CHAR(10)&V44","v":"②.普通救命講習Ⅱ\n（自動体外式除細動器業務従事者））\n（4時間）"},{"$f":"$U$35","v":"3.上級救命講習　"},{"$f":"$U$36","v":"4.普通救命再講習"},"5.上級救命再講習","6.応急救護講習","7.その他","4.普通救命再講習"]
[null,null,null,null,null,null,null,null,null,null,null,null,"⑤普通救命再講習（２時間２０分）","1.普通救命講習　",{"$f":"$U$34","v":"2.普通救命講習Ⅱ\n（自動体外式除細動器業務従事者））"},{"$f":"$U$35","v":"3.上級救命講習　"},{"$f":"U44&CHAR(10)&V43","v":"④.普通救命再講習\n（2時間20分）"},"5.上級救命再講習","6.応急救護講習","7.その他","5.上級救命再講習"]
[null,null,null,null,null,null,null,null,null,null,null,null,"⑥上級救命講習（８時間）","1.普通救命講習　","2.普通救命講習Ⅱ\n（自動体外式除細動器業務従事者））",{"$f":"U43&CHAR(10)&V45","v":"③.上級救命講習　\n（8時間）"},{"$f":"$U$36","v":"4.普通救命再講習"},"5.上級救命再講習","6.応急救護講習","7.その他","6.応急救護講習"]
[null,null,null,null,null,null,null,null,null,null,null,null,"⑦上級救命講習（短縮６時間）","1.普通救命講習　","2.普通救命講習Ⅱ\n（自動体外式除細動器業務従事者））",{"$f":"U43&CHAR(10)&V46","v":"③.上級救命講習　\n（短縮6時間）"},"4.普通救命再講習","5.上級救命再講習","6.応急救護講習","7.その他","7.その他"]
[null,null,null,null,null,null,null,null,null,null,null,null,"⑧上級救命再講習（３時間）","1.普通救命講習　","2.普通救命講習Ⅱ\n（自動体外式除細動器業務従事者））",{"$f":"$U$35","v":"3.上級救命講習　"},"4.普通救命再講習",{"$f":"U45&CHAR(10)&V41","v":"⑤.上級救命再講習\n（3時間）"},"6.応急救護講習","7.その他"]
[null,null,null,null,null,null,null,null,null,null,null,null,"⑨入門コース","1.普通救命講習　","2.普通救命講習Ⅱ\n（自動体外式除細動器業務従事者））","3.上級救命講習　","4.普通救命再講習",{"$f":"$U$37","v":"5.上級救命再講習"},"6.応急救護講習",{"$f":"U47","v":"⑦.その他"},"①.普通救命講習　","（3時間）","生徒"]
[null,null,null,null,null,null,null,null,null,null,null,null,"⑩ステップアップ普通救命講習","1.普通救命講習　","2.普通救命講習Ⅱ\n（自動体外式除細動器業務従事者））","3.上級救命講習　","4.普通救命再講習","5.上級救命再講習","6.応急救護講習",{"$f":"U47","v":"⑦.その他"},"②.普通救命講習Ⅱ\n（自動体外式除細動器業務従事者））","（短縮2時間）"]
[null,null,null,null,null,null,null,null,null,null,null,null,"⑪ステップアップ上級救命講習","1.普通救命講習　","2.普通救命講習Ⅱ\n（自動体外式除細動器業務従事者））","3.上級救命講習　","4.普通救命再講習","5.上級救命再講習","6.応急救護講習",{"$f":"U47","v":"⑦.その他"},"③.上級救命講習　","（2時間20分）"]
[null,null,null,null,null,null,null,null,null,null,null,null,"⑫普及員講習（８時間×３日間　２４時間）","1.普通救命講習　","2.普通救命講習Ⅱ\n（自動体外式除細動器業務従事者））","3.上級救命講習　","4.普通救命再講習","5.上級救命再講習","6.応急救護講習",{"$f":"U47","v":"⑦.その他"},"④.普通救命再講習","（4時間）"]
[null,null,null,null,null,null,null,null,null,null,null,null,"⑬普及員再講習（３時間）","1.普通救命講習　","2.普通救命講習Ⅱ\n（自動体外式除細動器業務従事者））","3.上級救命講習　","4.普通救命再講習","5.上級救命再講習","6.応急救護講習",{"$f":"U47","v":"⑦.その他"},"⑤.上級救命再講習","（8時間）"]
[null,null,null,null,null,null,null,null,null,null,null,null,"⑭【生徒】普通救命講習（３時間）",{"$f":"U41&CHAR(10)&V41&W41","v":"①.普通救命講習　\n（3時間）生徒"},"2.普通救命講習Ⅱ\n（自動体外式除細動器業務従事者））","3.上級救命講習　","4.普通救命再講習","5.上級救命再講習","6.応急救護講習",{"$f":"$U$39","v":"7.その他"},"⑥.応急救護講習","（短縮6時間）"]
[null,null,null,null,null,null,null,null,null,null,null,null,"⑮【生徒】普通救命講習（短縮２時間）",{"$f":"U41&CHAR(10)&V42&W41","v":"①.普通救命講習　\n（短縮2時間）生徒"},"2.普通救命講習Ⅱ\n（自動体外式除細動器業務従事者））","3.上級救命講習　","4.普通救命再講習","5.上級救命再講習","6.応急救護講習",{"$f":"$U$39","v":"7.その他"},"⑦.その他","（適宜）"]
[null,null,null,null,null,null,null,null,null,null,null,null,"⑯【生徒】上級救命講習（８時間）",{"$f":"$U$33","v":"1.普通救命講習　"},"2.普通救命講習Ⅱ\n（自動体外式除細動器業務従事者））",{"$f":"U43&CHAR(10)&V45&W41","v":"③.上級救命講習　\n（8時間）生徒"},"4.普通救命再講習","5.上級救命再講習","6.応急救護講習",{"$f":"$U$39","v":"7.その他"}]
[null,null,null,null,null,null,null,null,null,null,null,null,"⑰【生徒】上級救命講習（短縮６時間）","1.普通救命講習　","2.普通救命講習Ⅱ\n（自動体外式除細動器業務従事者））",{"$f":"U43&CHAR(10)&V46&W41","v":"③.上級救命講習　\n（短縮6時間）生徒"},"4.普通救命再講習","5.上級救命再講習","6.応急救護講習",{"$f":"$U$39","v":"7.その他"}]
[null,null,null,null,null,null,null,null,null,null,null,null,"⑱応急救護（適宜）",{"$f":"$U$33","v":"1.普通救命講習　"},"2.普通救命講習Ⅱ\n（自動体外式除細動器業務従事者））",{"$f":"$U$35","v":"3.上級救命講習　"},"4.普通救命再講習","5.上級救命再講習",{"$f":"U46&CHAR(10)&V47","v":"⑥.応急救護講習\n（適宜）"},{"$f":"$U$39","v":"7.その他"}]

{"sheet":"→自動入力されます　救命講習受講申請書","index":3,"n_rows":34,"n_cols":15,"rows_kept":34,"cut":false,"hidden":false,"merged":[[5,2,5,5],[2,2,2,5],[4,2,4,5],[6,2,6,3],[6,4,6,7],[15,0,16,1],[21,6,23,10],[6,8,6,10],[7,2,7,3],[7,9,7,10],[7,7,7,8],[7,4,7,6],[20,2,20,3],[21,2,21,3]]}
["救急様式第１号（警防要綱第５６条関係）"]
["救 　命 　講 　習 　受 　講 　申 　請 　書"]
[null,null,null,null,null,null,null,null,{"$f":"IF(こちらに入力!E2=\"\",\"年\",こちらに入力!E2&\"年\")","v":"年"},{"$f":"IF(こちらに入力!G2=\"\",\"月\",こちらに入力!G2&\"月\")","v":"月"},{"$f":"IF(こちらに入力!I2=\"\",\"日\",こちらに入力!I2&\"日\")","v":"日"}]
["　芝　消　防　署　長　殿"]
[null,null,null,null,null,null,"申　請　者",null,{"$f":"IF(こちらに入力!D4=\"\",\"\",こちらに入力!D4)","v":""},null,null,null,null,null,{"$f":"こちらに入力!C1","v":0}]
[null,null,null,null,null,null,"職・氏　名",null,{"$f":"IF(こちらに入力!D5=\"\",\"\",こちらに入力!D5)","v":""},{"$f":"IF(こちらに入力!E5=\"\",\"\",こちらに入力!E5)","v":""}]
["講習種別",null,{"$f":"IFERROR(VLOOKUP(こちらに入力!D7,こちらに入力!M33:T50,2,FALSE),こちらに入力!U33)","v":"1.普通救命講習　"},null,{"$f":"IFERROR(VLOOKUP(こちらに入力!D7,こちらに入力!M33:T50,3,FALSE),こちらに入力!U34)","v":"2.普通救命講習Ⅱ\n（自動体外式除細動器業務従事者））"},null,null,null,{"$f":"IFERROR(VLOOKUP(こちらに入力!D7,こちらに入力!M33:T50,4,FALSE),こちらに入力!U35)","v":"3.上級救命講習　"}]
["（講習時間）",null,{"$f":"IFERROR(VLOOKUP(こちらに入力!D7,こちらに入力!M33:T50,5,FALSE),こちらに入力!U36)","v":"4.普通救命再講習"},null,{"$f":"IFERROR(VLOOKUP(こちらに入力!D7,こちらに入力!M33:T50,6,FALSE),こちらに入力!U37)","v":"5.上級救命再講習"},null,null,{"$f":"IFERROR(VLOOKUP(こちらに入力!D7,こちらに入力!M33:T50,7,FALSE),こちらに入力!U38)","v":"6.応急救護講習"},null,{"$f":"IFERROR(VLOOKUP(こちらに入力!D7,こちらに入力!M33:T50,8,FALSE),こちらに入力!U39)","v":"7.その他"}]
["事業所の所在\n（請求先）",null,{"$f":"IF(こちらに入力!D15=\"\",\"〒　　　-　　　　\",\"〒\"&こちらに入力!D15&こちらに入力!E15&こちらに入力!F15)","v":"〒　　　-　　　　"},null,{"$f":"IF(こちらに入力!E16=\"\",\"　　　　\"&こちらに入力!G16&\"　　　　　\"&こちらに入力!I16&\"　　　　　\"&こちらに入力!K16,こちらに入力!D16&こちらに入力!E16&こちらに入力!F16&こちらに入力!G16&こちらに入力!H16&こちらに入力!I16&こちらに入力!J16&こちらに入力!K16)","v":"　　　　丁目　　　　　番　　　　　号"}]
["（建物名称・階層）",null,"　",null,{"$f":"IF(こちらに入力!E17=\"\",\"\",こちらに入力!E17&\"　　　　\"&こちらに入力!G17&こちらに入力!H17)","v":""}]
["事業所の名称",null,{"$f":"IF(こちらに入力!D18=こちらに入力!N4,IF(こちらに入力!D11=\"\",\"\",こちらに入力!D11),IF(こちらに入力!D19=\"\",\"\",こちらに入力!D19))","v":""}]
["実施日時",null,"　",{"$f":"IF(こちらに入力!E8=\"\",\"　\"&こちらに入力!F8&\"　　　　\"&こちらに入力!H8&\"　　　　\"&こちらに入力!J8&\"（　　　）\",こちらに入力!E8&こちらに入力!F8&こちらに入力!G8&こちらに入力!H8&こちらに入力!I8&こちらに入力!J8&こちらに入力!K8)","v":"　年　　　　月　　　　日（　　　）"},null,null,null,"　"]
[null,null,null,{"$f":"IF(こちらに入力!D9=\"\",\"　　\"&こちらに入力!E9&\"　　\"&こちらに入力!G9&\"　　\"&こちらに入力!I9&\"　　\"&こちらに入力!K9,こちらに入力!D9&こちらに入力!E9&こちらに入力!F9&こちらに入力!G9&こちらに入力!H9&こちらに入力!I9&こちらに入力!J9&こちらに入力!K9)","v":"　　時　　分～　　時　　分"},null,null,null,{"$f":"IF(こちらに入力!D10=\"\",\"\",こちらに入力!D10&こちらに入力!E10&こちらに入力!F10&こちらに入力!G10&こちらに入力!H10&こちらに入力!I10&こちらに入力!J10&こちらに入力!K10)","v":""}]
["実施場所",null,{"$f":"IF(こちらに入力!D18=\"\",\"港区　　　　　　　　丁目　　　　番　　　　　号\",IF(こちらに入力!D18=こちらに入力!N4,こちらに入力!D16&こちらに入力!E16&こちらに入力!F16&こちらに入力!G16&こちらに入力!H16&こちらに入力!I16&こちらに入力!J16&こちらに入力!K16&こちらに入力!E17,IF(こちらに入力!D18=こちらに入力!N5,こちらに入力!N5,こちらに入力!D24&こちらに入力!E24&こちらに入力!F24&こちらに入力!G24&こちらに入力!H24&こちらに入力!I24&こちらに入力!J24&こちらに入力!K24)))","v":"港区　　　　　　　　丁目　　　　番　　　　　号"}]
["（名称・階層等）",null,{"$f":"IF(こちらに入力!D18=\"\",\"\",IF(こちらに入力!D18=こちらに入力!N4,こちらに入力!E17&こちらに入力!G25&こちらに入力!H25&こちらに入力!J25,IF(こちらに入力!D18=こちらに入力!N5,\"\",こちらに入力!E25&こちらに入力!G25&こちらに入力!H25&こちらに入力!J25)))","v":""}]
["参加人員",null,{"$f":"IF(こちらに入力!C27=\"\",\"\",こちらに入力!C27)","v":""},{"$f":"こちらに入力!D27&\"名\"","v":"名"},null,null,"氏　名",{"$f":"IF(こちらに入力!D20=\"\",\"\",こちらに入力!D20&\"　\"&こちらに入力!D21)","v":""}]
[null,null,{"$f":"IF(こちらに入力!C28=\"\",\"\",こちらに入力!C28)","v":""},{"$f":"IF(C17=\"\",\"\",こちらに入力!D28&\"名\")","v":""},null,"担当者","電　話",{"$f":"IF(こちらに入力!D22=\"\",\"　　　（　　　　　）　　　　　　　\",こちらに入力!D22&こちらに入力!E22&こちらに入力!F22&こちらに入力!G22&こちらに入力!H22)","v":"　　　（　　　　　）　　　　　　　"}]
["対象者",null,{"$f":"IF(こちらに入力!D26=\"\",\"\",\"(\"&こちらに入力!D26&\")\")","v":""},null,null,null,"メール",{"$f":"IF(こちらに入力!D23=\"\",\"\",こちらに入力!D23)","v":""}]
["※受付欄",null,null,null,null,null,"備考欄"]
[null,null,null,null,null,null,{"$f":"IF(こちらに入力!D29=こちらに入力!N14,こちらに入力!N23,\"\")","v":""}]
[null,null,null,null,null,null,{"$f":"IF(こちらに入力!D30=こちらに入力!N17,こちらに入力!N24,\"\")","v":""}]
[null,null,null,null,null,null,{"$f":"IF(こちらに入力!D31=\"\",\"\",こちらに入力!D31)","v":""}]
[]
[]
[]
["（注）１　記入要領"]
["　　　　⑴　講習種別は該当するものを○で囲んでください。"]
["　　　　⑵　※欄は記入しないで下さい。"]
["　　　２　講習時間"]
["　　　　・普通救命講習(３時間/短縮２時間) ・普通救命講習(ＡＥＤ業務従事者)(４時間)"]
["　　　　・上級救命講習(８時間/短縮６時間) ・普通救命再講習(２時間２０分)"]
["　　　　・上級救命再講習(３時間)　　　　　・応急救護講習(適宜)"]
[null,null,null,"芝消防署警防課 救急係     TEL：03-3431-0119"]
[null,null,null,null,null,null,"   MAIL：siba8@tfd.metro.tokyo.jp"]

{"sheet":"救命講習申し込む補足","index":4,"n_rows":19,"n_cols":1,"rows_kept":19,"cut":false,"hidden":false,"merged":[]}
["令和７年度の講習受付及び救命講習等の申し込みにおける補足"]
["　令和７年度の救命講習の申し込みについて、まとめましたので申し込みの際参考にしてください。"]
["１．「令和７年度」令和７年４月～翌年３月までの講習は、令和７年１月から予約を開始します。"]
["２．予約は、電話または芝消防署窓口来署にて受け付けます。メールでは受け付けません。"]
["３．予約は先着順です、抽選ではありません。また、係員不在時はその場で予約受け付けできない場合もあります。予約は、月毎に定数を満たした時点で募集を〆切ます。"]
["４．同時に５日間まで予約可能です。それ以上の開催日数を希望される場合は、予約分を実施後に順次、次回の予約を行ってください。"]
["５．講習は１０名以上で開催します。"]
["６．前月１０日を予約・申し込みの〆切とします。それ以降は受付不可です。（例：７月中の講習は６月１０日が〆切日）"]
["７．救命講習の他にも各種業務を行っており、業務調整した中で限られた日程での予約案内となることについて、ご理解・ご協力をお願いします。"]
["８．消防署内で行う講習（署内講習）は、複数団体と合同で実施する可能性があります。"]
["９．署内講習は原則、１回最大２４名までとします。それ以上の人数の場合はご相談ください。１０名以上で開催決定します。"]
["１０．団体が用意する施設で行う講習（外部講習）は、１回１０名未満では受付・開催できません。最大人数は、会場ごとの特性と指導員の出向調整によるため、それぞれご相談いたします。"]
["１１．外部講習では、当日（前日・翌日）に芝消防署にて器材を受領・搬送・返納していただく必要があります。連続する期間で講習を行う際、その期間は器材をお預かりいただきます。"]
["１２．外部講習では、ＤＶＤ再生視聴設備のご準備をお願いしています。（なくても講習は開催可能です）"]
["１３．事前の受講者登録（開催日２週間前〆切）をお薦めします。それにより、開催当日に認定証をお渡しすることができます。"]
["１４．「救命講習受講申請書」を添付しております。予約後、開催前月１０日までに本様式で「申請」（メール送付または窓口持参）してください。"]
["１５.　その他の救命講習教材費については、消防署に問い合わせください。"]
["以上、簡潔ではございますが御案内といたします。"]
["引き続き、消防行政へのご理解・ご協力をよろしくお願いいたします。"]